Cogmind - Beta 11.1 @@@ ROGUE MODE // 2022.07.26 @ 17:43:19 Player: Vena Result: Destroyed by G-47 Trooper with Particle Gun Performance ------------- Evolutions (2) 1000 Regions Visited (5) 1000 Robots Destroyed (37) 185 Value Destroyed (754) 754 Prototype IDs (1) 20 Alien Tech Used (0) 0 Bonus (429) 429 TOTAL SCORE: 3388 Bonus ------- Pacifist 200 High Alert Combat Kills 67 Follower Combat Kills 33 Entered Garrisons 200 Friendly Fire -71 Cogmind --------- Core Integrity 0/550 Matter 300/300 Energy 99/100 System Corruption 0% Temperature Cool (36) Movement Core (100) Ox1 Location -8/Garrison Parts ------- > --- POWER (2) -------- (None) > --- PROPULSION (3) --- (None) > --- UTILITY (4) ------ Improved Heat Sink > --- WEAPON (2) ------- Beam Rifle > --- INVENTORY (5) ---- Ion Engine Light Ion Engine Improved Ion Engine Light Nuclear Core Peak State ------------ > --- POWER ------------ Ion Engine Improved Ion Engine > --- PROPULSION ------- Wheel Wheel Wheel > --- UTILITY ---------- Improved Heat Sink Small Storage Unit Improved Weapon Shielding Hardlight Generator > --- WEAPON ----------- Beamcaster Beamcaster > --- INVENTORY -------- Light Ion Engine Light Nuclear Core Light Angular Momentum Engine Wheel Beam Rifle Flak Cannon Rocket Launcher [Rating: 27] Favorites ----------- Power Light Ion Engine Engine Light Ion Engine Power Core Light Nuclear Core Propulsion Wheel Leg Aluminum Leg Wheel Wheel Utility Small Storage Unit Device Improved Heat Sink Storage Small Storage Unit Protection Light Armor Plating Weapon Rocket Launcher Energy Gun Beamcaster Ballistic Gun Improved Assault Rifle Ballistic Cannon Flak Cannon Launcher Rocket Launcher Build | -11 -10 -9 -9 -8 -8 ------- Run | Scr Mat Mat Min Mat Gar Slots Evolved 4 | . . 2 . 2 . Power 1 | . . 1 . . . Propulsion 1 | . . 1 . . . Utility 2 | . . . . 2 . Weapon . | . . . . . . Parts Attached 55 | 6 2 11 16 3 17 Power 10 | 1 . 2 2 . 5 Engine 9 | 1 . 2 2 . 4 Core 1 | . . . . . 1 Reactor . | . . . . . . Propulsion 15 | 2 . 4 5 . 4 Treads . | . . . . . . Leg 3 | . . 3 . . . Wheel 12 | 2 . 1 5 . 4 Hover . | . . . . . . Flight . | . . . . . . Utility 11 | 1 1 1 4 2 2 Device 7 | . . . 4 1 2 Storage 1 | 1 . . . . . Processor . | . . . . . . Hackware . | . . . . . . Protection 3 | . 1 1 . 1 . Artifact . | . . . . . . Weapon 19 | 2 1 4 5 1 6 Energy Gun 8 | 1 . . 4 . 3 Energy Cannon . | . . . . . . Ballistic Gun 3 | 1 . 2 . . . Ballistic Cannon 2 | . . . . 1 1 Launcher 6 | . 1 2 1 . 2 Special Weapon . | . . . . . . Impact Weapon . | . . . . . . Slashing Weapon . | . . . . . . Piercing Weapon . | . . . . . . Special Melee Weapon . | . . . . . . Unidentified Prototypes 1 | . . 1 . . . Parts Lost 27 | . . 8 1 . 18 Power 5 | . . 1 . . 4 Propulsion 8 | . . 3 . . 5 Utility 6 | . . 1 1 . 4 Weapon 8 | . . 3 . . 5 Highest Loss Streak 17 | . . 7 1 . 17 To Critical Strikes . | . . . . . . Average Slot Usage (%) 91 | . 98 87 94 97 84 Engine 18 | . 14 17 22 18 16 Leg 9 | . . 17 13 . . Wheel 18 | . 28 10 19 27 19 Device 6 | . . . 3 18 15 Storage 10 | . 14 11 11 9 9 Protection 6 | . 13 11 3 6 6 Energy Gun 6 | . 9 . 5 9 11 Ballistic Gun 5 | . 14 6 7 . . Ballistic Cannon 1 | . . . . 6 4 Launcher 7 | . 5 12 8 2 1 Naked Turns . | . . . . . . Heaviest Build 36 | 11 17 21 27 33 36 Greatest Support 30 | 20 20 30 30 30 30 Greatest Overweight (x) 5 | 1 . . 1 1 5 Average Overweight (x) . | . . . . . 1 Largest Inventory Capacity 8 | 8 8 8 8 8 8 Average Capacity 7 | 7 8 8 8 8 7 Most Carried 8 | 6 8 8 8 8 8 Average Carried 6 | 3 7 5 7 7 7 Final Capacity 8 | 8 8 8 8 8 5 Final Carried 8 | 6 8 7 8 8 4 Class Distribution -------------------- 50% | Mutant 49% | Scavenger-Mutant Dominant Class ---------------- Mutant | -10/Materials Mutant | -9/Materials Scavenger-Mutant | -9/Mines Scavenger-Mutant | -8/Materials Scavenger-Mutant | -8/Garrison Resources | -11 -10 -9 -9 -8 -8 ----------- Run | Scr Mat Mat Min Mat Gar Matter Collected 1212 | 260 . 364 313 66 209 Remotely . | . . . . . . Salvage Created 744 | . . 230 101 132 281 Parts 50 | . . 26 3 4 17 Haulers Intercepted . | . . . . . . Recyclers Shooed . | . . . . . . Parts Field Recycled . | . . . . . . Retrieved Matter . | . . . . . . Parts Self-Destructed . | . . . . . . Prevented . | . . . . . . Kills | -11 -10 -9 -9 -8 -8 ------- Run | Scr Mat Mat Min Mat Gar Combat Hostiles Destroyed 33 | . . 11 6 3 13 Melee 1 | . . . . . 1 Guns 14 | . . 1 5 2 6 Cannons 3 | . . . . 1 2 AOE 15 | . . 10 1 . 4 Classes Destroyed 7 | . . 6 1 . . Worker 5 | . . 2 3 . . Builder 2 | . . 2 . . . Recycler 3 | . . 2 1 . . Swarmer 15 | . . 7 . . 8 Grunt 7 | . . 1 . 2 4 Sentry 5 | . . 3 . 1 1 Assembled 6 | . . . 6 . . Best Kill Streak 8 | . . 6 5 2 8 Combat Bots Only 8 | . . 4 4 2 8 Max Kills in Single Turn 4 | . . 4 2 1 2 Gunslinging . | . . . . . . Exploded 3 | . . 3 1 . 2 Melee 1 | . . . . . 1 Uniques/NPCs Destroyed . | . . . . . . Combat | -11 -10 -9 -9 -8 -8 -------- Run | Scr Mat Mat Min Mat Gar Damage Taken 2909 | . 26 887 53 84 1859 Core 707 | . . 123 20 21 543 Absorbed by Shields 361 | . . . 3 33 325 Redirected to Shielding 103 | . . . . 26 77 Core Remaining (%) 88 | 100 100 . 64 . . Volleys Fired 92 | . . 31 20 6 35 Largest 2 | . . 2 2 2 2 Hottest 150 | . . 66 150 119 150 Shots Fired 161 | . . 49 35 12 65 Gun 103 | . . 24 28 6 45 Cannon 19 | . . . . 6 13 Launcher 39 | . . 25 7 . 7 Special . | . . . . . . Kinetic 50 | . . 24 7 6 13 Thermal 69 | . . . 18 6 45 Explosive 39 | . . 25 7 . 7 Electromagnetic 3 | . . . 3 . . Robot Hit Streak 9 | . . 9 3 4 8 Robot Miss Streak 11 | . . 5 4 4 11 Penetration Max . | . . . . . . Secondary Targets 2 | . . 1 . . 1 Max Gunslinging Chain 1 | . . 1 . . 1 Shots Hit Robots 80 | . . 24 10 9 37 Core Hits 79 | . . 27 12 11 29 Critical Kills . | . . . . . . Critical Parts Destroyed . | . . . . . . Critical Strikes 6 | . . . 2 . 4 Burn 6 | . . . 2 . 4 Melee Attacks . | . . . . . . Impact . | . . . . . . Slashing . | . . . . . . Piercing . | . . . . . . Sneak Attacks . | . . . . . . Combat Hostiles . | . . . . . . Follow-up Attacks . | . . . . . . Damage Inflicted 2989 | . . 1378 513 207 891 Guns 879 | . . 139 219 85 436 Cannons 348 | . . . . 122 226 Explosions 1722 | . . 1226 292 . 204 Melee . | . . . . . . Ramming 40 | . . 13 2 . 25 Kinetic 487 | . . 139 . 122 226 Thermal 730 | . . . 209 85 436 Explosive 1722 | . . 1226 292 . 204 Electromagnetic 10 | . . . 10 . . Impact . | . . . . . . Slashing . | . . . . . . Piercing . | . . . . . . Highest Corruption . | . . . . . . Average Corruption . | . . . . . . Corruption Purged . | . . . . . . Corruption Blocked . | . . . . . . Overload Shots . | . . . . . . Overflow Damage 131 | . . 50 23 . 58 Projectiles . | . . . . . . Explosions 131 | . . 50 23 . 58 Melee . | . . . . . . Knockbacks 7 | . . . . . 7 Impact . | . . . . . . Kinetic 7 | . . . . . 7 Secondary . | . . . . . . Self-Inflicted Damage 251 | . . 133 33 . 85 Shots 9 | . . 5 2 . 2 Rammed 12 | . . 2 1 . 9 Targets Rammed 13 | . . 3 1 . 9 Kicked 1 | . . 1 . . . Crushed . | . . . . . . Highest Temperature 385 | . . 105 385 84 326 Average Temperature 91 | . . 33 141 35 101 Received Heat Transfer 1114 | . . 243 . 36 835 Effects 4 | . . . 3 . 1 Energy Bleed 1 | . . . . . 1 Interference 2 | . . . 2 . . Short Circuit 1 | . . . 1 . . Siege Activations . | . . . . . . Robots Corrupted . | . . . . . . Combat Hostiles . | . . . . . . Parts Fried . | . . . . . . Impact Corruptions . | . . . . . . Robots Melted . | . . . . . . Combat Hostiles . | . . . . . . Parts Melted . | . . . . . . Heat Transferred 1776 | . . . 518 148 1110 Parts Sabotaged . | . . . . . . Parts Stolen . | . . . . . . Parts Stripped . | . . . . . . Power Chain Reactions . | . . . . . . Missiles Intercepted . | . . . . . . Alert | -11 -10 -9 -9 -8 -8 ------- Run | Scr Mat Mat Min Mat Gar Peak Influence 867 | . 21 867 395 174 462 Initial 259 | . . 8 259 70 113 Average 264 | . 11 412 279 118 291 Maximum Alert Level 3 | . . 3 1 . 2 Low Security (%) 47 | 100 100 27 30 100 41 Level 1 30 | . . 13 69 . 18 Level 2 20 | . . 51 . . 39 Level 3 1 | . . 7 . . . Level 4 . | . . . . . . Level 5 . | . . . . . . High Security . | . . . . . . Max Security . | . . . . . . Squads Dispatched 1 | . . 1 . . . Investigation . | . . . . . . Extermination . | . . . . . . Reinforcement 1 | . . 1 . . . Assault . | . . . . . . Garrison . | . . . . . . Intercept . | . . . . . . Searches Triggered . | . . . . . . Construction Impeded . | . . . . . . Haulers Reinforced . | . . . . . . Active Scanning Responses . | . . . . . . Cargo Convoy Interrupts . | . . . . . . Stealth | -11 -10 -9 -9 -8 -8 --------- Run | Scr Mat Mat Min Mat Gar Distress Signals 3 | . . 3 . . . Communications Jammed . | . . . . . . Distress Signals . | . . . . . . Times Spotted 53 | . 3 19 7 4 20 Peak Tracking Total 8 | . 4 8 3 2 8 Tactical Retreats 3 | . . 1 1 . 1 Traps | -11 -10 -9 -9 -8 -8 ------- Run | Scr Mat Mat Min Mat Gar Traps Triggered . | . . . . . . Indirectly . | . . . . . . Trap Hack Attempts . | . . . . . . Triggered . | . . . . . . Disarmed . | . . . . . . Reprogrammed . | . . . . . . Reused . | . . . . . . Traps Extracted . | . . . . . . Installed . | . . . . . . Triggered . | . . . . . . Machines | -11 -10 -9 -9 -8 -8 ---------- Run | Scr Mat Mat Min Mat Gar Machines Disabled 5 | . . 4 1 . . Max in Single Turn 2 | . . 2 1 . . Garrison Relay 1 | . . . . . 1 Machines Sabotaged . | . . . . . . Garrisons Compromised . | . . . . . . Overloaded Fab Kills . | . . . . . . Hacking | -11 -10 -9 -9 -8 -8 --------- Run | Scr Mat Mat Min Mat Gar Machines Accessed 4 | . 1 1 . 2 . Terminals 1 | . 1 . . . . Fabricators . | . . . . . . Repair Stations . | . . . . . . Recycling Units . | . . . . . . Scanalyzers 2 | . . 1 . 1 . Garrison Access 1 | . . . . 1 . Total Hacks 13 | . 4 3 . 6 . Successful 10 | . 2 2 . 6 . Failed 3 | . 2 1 . . . Catastrophic . | . . . . . . Database Lockouts . | . . . . . . Manual 4 | . 4 . . . . Terminals 4 | . 4 . . . . Fabricators . | . . . . . . Repair Stations . | . . . . . . Recycling Units . | . . . . . . Scanalyzers 7 | . . 3 . 4 . Garrison Access 2 | . . . . 2 . Terminal Hacks 2 | . 2 . . . . Locate Traps 1 | . 1 . . . . Zone Layout 1 | . 1 . . . . Fabricator Hacks . | . . . . . . Repair Station Hacks . | . . . . . . Recycling Unit Hacks . | . . . . . . Scanalyzer 6 | . . 2 . 4 . Insert Component 3 | . . 1 . 2 . Analyze 3 | . . 1 . 2 . Garrison Access Hacks 2 | . . . . 2 . Unlock Access 1 | . . . . 1 . Coupler Status 1 | . . . . 1 . Unauthorized Hacks . | . . . . . . Terminals . | . . . . . . Fabricators . | . . . . . . Repair Stations . | . . . . . . Recycling Units . | . . . . . . Scanalyzers . | . . . . . . Garrison Access . | . . . . . . Data Cores Recovered . | . . . . . . Used . | . . . . . . Hacking Detections 1 | . . . . 1 . Full Trace Events . | . . . . . . Feedback Events . | . . . . . . Feedback Blocked . | . . . . . . Robot Schematics Acquired . | . . . . . . Robots Built . | . . . . . . Authchips . | . . . . . . Time . | . . . . . . Total Robot Build Rating . | . . . . . . Part Schematics Acquired 3 | . . 1 . 2 . Parts Built . | . . . . . . Authchips . | . . . . . . Time . | . . . . . . Total Part Build Rating . | . . . . . . Parts Repaired . | . . . . . . Time . | . . . . . . Parts Recycled . | . . . . . . Recycled Matter . | . . . . . . Retrieved Matter . | . . . . . . Retrieved Components . | . . . . . . Parts Scanalyzed 3 | . . 1 . 2 . Part Schematics Acquired 3 | . . 1 . 2 . Parts Damaged . | . . . . . . Bothacking | -11 -10 -9 -9 -8 -8 ------------ Run | Scr Mat Mat Min Mat Gar Used RIF Installer . | . . . . . . Robots Hacked . | . . . . . . Non-combat . | . . . . . . Combat . | . . . . . . Robot Hacks Applied . | . . . . . . Relay Couplers Released 3 | . . . . . 3 Machine Destruction 3 | . . . . . 3 Fabnet Peak Effective % . | . . . . . . Robots Rewired . | . . . . . . Allies Hacked . | . . . . . . Hacks Repelled . | . . . . . . Allies | -11 -10 -9 -9 -8 -8 -------- Run | Scr Mat Mat Min Mat Gar Total Allies 3 | . . . 3 . . Largest Group 3 | . . . 3 . . Highest-Rated Group 40 | . . . 40 . . Highest-Rated Ally 16 | . . . 16 . . Total Orders 6 | . . . 6 . . GUARD 6 | . . . 6 . . Ally Attacks 9 | . . . 9 . . Total Damage 93 | . . . 93 . . Kills 3 | . . . 3 . . Allies Corrupted . | . . . . . . Allies Melted . | . . . . . . Intel | -11 -10 -9 -9 -8 -8 ------- Run | Scr Mat Mat Min Mat Gar Robot Analysis Total . | . . . . . . Derelict Logs Recovered 1 | . . . 1 . . Drone Launches . | . . . . . . Drone Recoveries . | . . . . . . Exploration | -11 -10 -9 -9 -8 -8 ------------- Run | Scr Mat Mat Min Mat Gar Turns Passed 1706 | 63 143 401 574 170 355 Spaces Moved 1303 | 56 146 257 474 155 215 Core 8 | 4 . . . . 4 Treads . | . . . . . . Legs 351 | . . 175 176 . . Wheels 944 | 52 146 82 298 155 211 Hover . | . . . . . . Flight . | . . . . . . Fastest Speed 50 | 50 80 80 80 80 95 Average Speed 95 | 79 80 107 94 89 101 Slowest Speed 300 | 95 80 120 120 95 300 Overloaded Moves . | . . . . . . Propulsion Burnouts . | . . . . . . Robots Hopped . | . . . . . . Cave-ins Triggered . | . . . . . . Exploration Rate (%) 29 | 5 29 26 53 21 42 Regions Visited 5 Branch Regions 1 Pre-discovered Areas . | . . . . . . Known Exits Taken 1 | . . . . 1 . Unknown Exits Taken 4 | 1 1 1 1 . . Scrap Searched 2 | . . . 2 . . Spaces Dug 19 | . . 19 . . . Terrain Destroyed 234 | . . 146 63 . 25 Melee . | . . . . . . Projectile 1 | . . . 1 . . AOE 233 | . . 146 62 . 25 Terrain Rammed . | . . . . . . Walls Destroyed . | . . . . . . Machines Disabled . | . . . . . . Actions | -11 -10 -9 -9 -8 -8 --------- Run | Scr Mat Mat Min Mat Gar Total 1590 | 71 172 330 562 175 280 Wait 78 | 4 18 22 29 5 . Move 1298 | 55 145 256 473 154 215 Hop . | . . . . . . Pick Up 33 | 6 4 7 10 4 2 Fast Attach 19 | 6 2 2 4 1 4 Attach 15 | . . 8 . 1 6 Detach 1 | . . . . . 1 Swap 21 | . . 1 12 1 7 Drop 20 | . 3 . 13 3 1 Fire 92 | . . 31 20 6 35 Melee . | . . . . . . Ram 12 | . . 2 1 . 9 Kick 1 | . . 1 . . . Crush . | . . . . . . Escape Stasis . | . . . . . . Rewire . | . . . . . . Trap . | . . . . . . Miscellaneous . | . . . . . . Route ------- -11/Scrapyard -10/Materials -9/Materials -9/Mines -8/Materials -8/Garrison History --------- Turn | Location | Event 12 | -11/Scrapyard | Discovered new exit (range 16) 64 | -11/Scrapyard | Entered Materials 193 | -10/Materials | Discovered new exit (range 6) 207 | -10/Materials | Entered another Materials area 207 | -9/Materials | Evolved 2 slots: Power x1, Propulsion x1 329 | -9/Materials | Build established: Mutant 369 | -9/Materials | Lost 7 parts (1p3n1u2w) 581 | -9/Materials | Discovered new exit (range 10) 608 | -9/Materials | Entered Mines 623 | -9/Mines | Assisted by bots powering up and referring to "LRC-V3" 925 | -9/Mines | Assembled infested the area 989 | -9/Mines | Joined a pair of Derelicts in attacking an 0b10 outpost 1011 | -9/Mines | Learned Materials emergency access door positions 1161 | -9/Mines | Discovered new exit (range 14) 1181 | -9/Mines | Build established: Scavenger-Mutant 1182 | -9/Mines | Entered Materials 1182 | -8/Materials | Evolved 2 slots: Utility x2 1351 | -8/Materials | Identified exit to Garrison 1352 | -8/Materials | Entered Garrison 1418 | -8/Garrison | Triggered checkpoint 1532 | -8/Garrison | Triggered checkpoint 1532 | -8/Garrison | Triggered checkpoint 1574 | -8/Garrison | Triggered checkpoint 1591 | -8/Garrison | Destroyed 8 combat bots 1606 | -8/Garrison | Triggered checkpoint 1636 | -8/Garrison | Triggered checkpoint 1659 | -8/Garrison | Garrison Relay disabled 1687 | -8/Garrison | Core integrity fell below 50% 1700 | -8/Garrison | Core integrity fell below 20% 1707 | -8/Garrison | Destroyed by G-47 Trooper with Particle Gun Last Messages --------------- 01674_ Acquired 60 matter. 01677_ Acquired Imp. Ion Engine. 01677_ Critical hit (Burn: +37). 01680_ G-50 Soldier knocked back. 01681_ G-47 Trooper destroyed. 01682_ Wheel destroyed. 01683_ Acquired Lgt. Nuclear Core. 01684_ Flak Cannon destroyed. 01685_ Rocket Launcher destroyed. 01687_ G-47 Trooper destroyed. 01688_ Imp. Ion Engine destroyed. 01691_ Acquired Beam Rifle. 01700_ Critical hit (Burn: +37). 01701_ Sml. Storage Unit destroyed. 01702_ Slammed into G-50 Soldier. 01704_ Beam Rifle destroyed. 01704_ Lgt. Nuclear Core destroyed. 01706_ Slammed into Y-45 Defender. 01707_ Acquired 37 matter. 01707_ Critical hit (Burn: +37). Map ----- +----------------------------------------------------+ | #?????????????????????????????????????????? | | #?????????????????????????????????????????? | | ## #?????????????????????????????????????????? | | ?# #?????????????????????????????????????????? | | #??# #?????????????????????????????????????????? | | ???# #?????????????????????????????????????????? | | ???# #?????????????????????????????????????????? | | ???# ########??????????????????????????????????? | | ???# #??????????????????????????????????? | | ???# ###### #??????????????????????????????????? | | ???# #????# #??????????????????????????????????? | | ???# #????# #??????????????????????????????????? | | ???# ###### ##############?????????????????????? | | ???# ????????????????????? | | ???# ????????????????????? | | ???# ????????????????????? | | ???########## ###+##########?????????????????????? | | ????????????# #?# #??????????????????????????????? | | ????????????# #?# #??????????????????????????????? | | ????????????# ###+##?????????????????????????????? | | ????????????# ## #?????????????????????????????? | | ????????????# ## #######???????????????????????? | | ????????????# !! #???????????????????????? | | ????????????########## !!#???????????????????????? | | ?????????????????????#=gY#####!!!#???????????????? | | ?????????????????????# Y%@g !#???????????????? | | ?????????????????????# g#####!!!#???????????????? | | ?????????????????????#" #???????????????????????? | | ?????????????????????#"""#???????????????????????? | | ?????????????????????#####???????????????????????? | | ?????????????????????????????????????????????????? | | ?????????????????????????????????????????????????? | | ?????????????????????????????????????????????????? | | ?????????????????????????????????????????????????? | | ?????????????????????????????????????????????????? | | ?????????????????????????????????????????????????? | | ?????????????????????????????????????????????????? | | ?????????????????????????????????????????????????? | | ?????????????????????????????????????????????????? | | ?????????????????????????????????????????????????? | | ?????????????????????????????????????????????????? | | ?????????????????????????????????????????????????? | | ?????????????????????????????????????????????????? | | ?????????????????????????????????????????????????? | | ?????????????????????????????????????????????????? | | | | | | | | | | | +----------------------------------------------------+ Best States ------------- Heat Dissipation 45 Energy Generation 23 Energy Capacity 415 Matter Stores 300 Matter Capacity 300 Sight Range 16 Terrain Scan Density 10 Armor Coverage 150 Weapon Shielding 66 Evasion (%) 55 Item Schematics ----------------- Rocket Launcher | -9/Materials | Scanalyzed Beamcaster | -8/Materials | Scanalyzed Wheel | -8/Materials | Scanalyzed Robot Schematics ------------------ None Fabricated ------------ Nothing Alien Tech Used ----------------- None Achievements -------------- I Survived The Infestation Challenges ------------ None Game ------ Seed LatentSkeletonStabilizer Manual? 0 Play Time 01:01:28 Cumulative 8.9 hours Start 2022.07.26 @ 05:27:29 End 2022.07.26 @ 17:43:19 Sessions 2 Manual Loads 0 Difficulty Rogue Special Mode None Game No. 14 Rogue 14 Adventurer 0 Explorer 0 Win Type - Total 0 Types 0/0/0/0/0/0/0/0/0 Lore% 5 Gallery% 7 Achievement% 10 Wizard Run 0 Options --------- ASCII 0 Keyboard 0 Movement Numpad Keybinds 0 Fullscreen 2 Font 24/Smallcaps Map View 76x50 Tactical HUD 1 Map Filters NONE Filters NONE Steam 1 RUN: ed203b62-4d7e-4cbb-a3d3-bfb3d25d3844